[Event "Titled Tuesday Blitz February 28 Early 2023"]
[White "Ingebretsen, Jens E"]
[Black "Sattarov, Bobir"]
[WhiteFideId "1522965"]
[BlackFideId "14203081"]
[WhiteElo "2213"]
[BlackElo "2351"]
[Result "0-1"]
[Round "06"]
[TimeControl "180+2"]
[Date "2023.02.28"]
[WhiteClock "0:00:27"]
[BlackClock "0:01:47"]

1. d4 {[%clk 0:03:00]}  Nf6 {[%clk 0:02:59]} 2. c4 {[%clk 0:03:01]}  c5 {[%clk 0:02:58]} 3. d5 {[%clk 0:03:01]}  g6 {[%clk 0:02:59]} 4. Nc3 {[%clk 0:03:01]}  Bg7 {[%clk 0:02:59]} 5. g3 {[%clk 0:03:01]}  d6 {[%clk 0:03:00]} 6. Bg2 {[%clk 0:03:01]}  O-O {[%clk 0:03:00]} 7. Nf3 {[%clk 0:03:02]}  e6 {[%clk 0:03:01]} 8. O-O {[%clk 0:03:02]}  exd5 {[%clk 0:03:01]} 9. cxd5 {[%clk 0:03:02]}  Re8 {[%clk 0:03:01]} 10. Nd2 {[%clk 0:03:02]}  Nbd7 {[%clk 0:03:01]} 11. Nc4 {[%clk 0:03:00]}  Nb6 {[%clk 0:03:00]} 12. Ne3 {[%clk 0:02:56]}  a6 {[%clk 0:02:59]} 13. a4 {[%clk 0:02:56]}  Nh5 {[%clk 0:02:52]} 14. Ra3 {[%clk 0:02:52]}  f5 {[%clk 0:02:50]} 15. a5 {[%clk 0:02:45]}  Nd7 {[%clk 0:02:50]} 16. Nc4 {[%clk 0:02:45]}  Ne5 {[%clk 0:02:49]} 17. Nb6 {[%clk 0:02:43]}  Rb8 {[%clk 0:02:49]} 18. f4 {[%clk 0:02:42]}  Ng4 {[%clk 0:02:47]} 19. e4 {[%clk 0:02:35]}  Bd4+ {[%clk 0:02:46]} 20. Kh1 {[%clk 0:02:34]}  Nf2+ {[%clk 0:02:32]} 21. Rxf2 {[%clk 0:02:33]}  Bxf2 {[%clk 0:02:33]} 22. Qf3 {[%clk 0:02:11]}  Bd4 {[%clk 0:02:30]} 23. Be3 {[%clk 0:02:09]}  Bxc3 {[%clk 0:02:23]} 24. Rxc3 {[%clk 0:02:01]}  Rxe4 {[%clk 0:02:24]} 25. h3 {[%clk 0:01:38]}  Bd7 {[%clk 0:02:21]} 26. Kh2 {[%clk 0:01:32]}  Qe7 {[%clk 0:02:19]} 27. Qf2 {[%clk 0:01:30]}  Nf6 {[%clk 0:02:15]} 28. Qd2 {[%clk 0:00:44]}  Re8 {[%clk 0:02:13]} 29. Bxe4 {[%clk 0:00:41]}  Nxe4 {[%clk 0:02:13]} 30. Qc2 {[%clk 0:00:37]}  Nxc3 {[%clk 0:02:13]} 31. Nxd7 {[%clk 0:00:37]}  Qxd7 {[%clk 0:02:02]} 32. Qxc3 {[%clk 0:00:37]}  Qg7 {[%clk 0:02:00]} 33. Qd2 {[%clk 0:00:36]}  Re4 {[%clk 0:01:59]} 34. Bf2 {[%clk 0:00:36]}  Qe7 {[%clk 0:01:58]} 35. Kg1 {[%clk 0:00:35]}  Re2 {[%clk 0:01:58]} 36. Qc3 {[%clk 0:00:35]}  Qg7 {[%clk 0:01:51]} 37. Qc4 {[%clk 0:00:29]}  Qxb2 {[%clk 0:01:50]} 38. Qa4 {[%clk 0:00:29]}  Qb1+ {[%clk 0:01:47]} 39. Kg2 {[%clk 0:00:27]}  Qe4+ {[%clk 0:01:47]} 0-1


[Site "https://www.chess.com"]

[Event "Titled Tuesday Blitz February 28 Early 2023"]
[White "Koellner, Ruben Gideon"]
[Black "Dominguez Perez, Leinier"]
[WhiteFideId "12993093"]
[BlackFideId "3503240"]
[WhiteElo "2303"]
[BlackElo "2647"]
[Result "0-1"]
[Round "06"]
[TimeControl "180+2"]
[Date "2023.02.28"]
[WhiteClock "0:00:02"]
[BlackClock "0:00:55"]

1. d4 {[%clk 0:02:59]}  Nf6 {[%clk 0:03:00]} 2. Nf3 {[%clk 0:02:59]}  d5 {[%clk 0:02:59]} 3. e3 {[%clk 0:02:59]}  c5 {[%clk 0:02:58]} 4. c3 {[%clk 0:02:59]}  e6 {[%clk 0:02:56]} 5. Nbd2 {[%clk 0:02:58]}  Nbd7 {[%clk 0:02:55]} 6. Bd3 {[%clk 0:02:58]}  b6 {[%clk 0:02:55]} 7. Ne5 {[%clk 0:02:57]}  Bb7 {[%clk 0:02:51]} 8. f4 {[%clk 0:02:56]}  Be7 {[%clk 0:02:50]} 9. Qf3 {[%clk 0:02:56]}  O-O {[%clk 0:02:50]} 10. O-O {[%clk 0:02:56]}  Qc7 {[%clk 0:02:42]} 11. g4 {[%clk 0:02:55]}  a5 {[%clk 0:02:32]} 12. g5 {[%clk 0:02:54]}  Ne8 {[%clk 0:02:32]} 13. Bxh7+ {[%clk 0:02:44]}  Kxh7 {[%clk 0:02:31]} 14. Qh5+ {[%clk 0:02:45]}  Kg8 {[%clk 0:02:32]} 15. Rf3 {[%clk 0:02:46]}  Nef6 {[%clk 0:01:46]} 16. Qh4 {[%clk 0:02:13]}  g6 {[%clk 0:01:45]} 17. gxf6 {[%clk 0:01:46]}  Nxf6 {[%clk 0:01:45]} 18. Rh3 {[%clk 0:01:38]}  Nh5 {[%clk 0:01:45]} 19. Qg4 {[%clk 0:01:37]}  Ng7 {[%clk 0:01:40]} 20. Rh6 {[%clk 0:01:22]}  Bf6 {[%clk 0:01:37]} 21. Ndf3 {[%clk 0:01:08]}  Nf5 {[%clk 0:01:36]} 22. Rh3 {[%clk 0:00:50]}  Kg7 {[%clk 0:01:21]} 23. Ng5 {[%clk 0:00:44]}  Bxg5 {[%clk 0:01:21]} 24. fxg5 {[%clk 0:00:29]}  Rh8 {[%clk 0:01:21]} 25. e4 {[%clk 0:00:13]}  dxe4 {[%clk 0:01:21]} 26. Bf4 {[%clk 0:00:13]}  Rxh3 {[%clk 0:01:15]} 27. Qxh3 {[%clk 0:00:14]}  e3 {[%clk 0:00:54]} 28. Nd3 {[%clk 0:00:06]}  Qc6 {[%clk 0:00:53]} 29. Be5+ {[%clk 0:00:05]}  Kf8 {[%clk 0:00:54]} 30. Qh8+ {[%clk 0:00:02]}  Ke7 {[%clk 0:00:54]} 31. Bf6+ {[%clk 0:00:03]}  Kd6 {[%clk 0:00:54]} 32. Be5+ {[%clk 0:00:02]}  Kd7 {[%clk 0:00:55]} 0-1


[Site "https://www.chess.com"]

[Event "Titled Tuesday Blitz February 28 Early 2023"]
[White "Demchenko, Anton"]
[Black "Domingo Nunez, Alejandro"]
[WhiteFideId "4160258"]
[BlackFideId "22245561"]
[WhiteElo "2545"]
[BlackElo "2230"]
[Result "1-0"]
[Round "06"]
[TimeControl "180+2"]
[Date "2023.02.28"]
[WhiteClock "0:00:21"]
[BlackClock "0:00:01"]

1. a3 {[%clk 0:02:55]}  g6 {[%clk 0:02:55]} 2. e4 {[%clk 0:02:54]}  Bg7 {[%clk 0:02:54]} 3. h4 {[%clk 0:02:48]}  h5 {[%clk 0:02:51]} 4. d4 {[%clk 0:02:42]}  c6 {[%clk 0:02:51]} 5. Nc3 {[%clk 0:02:31]}  d5 {[%clk 0:02:51]} 6. exd5 {[%clk 0:02:27]}  cxd5 {[%clk 0:02:50]} 7. Bf4 {[%clk 0:02:28]}  Nf6 {[%clk 0:02:44]} 8. Nb5 {[%clk 0:02:24]}  Na6 {[%clk 0:02:44]} 9. Bd3 {[%clk 0:02:20]}  O-O {[%clk 0:02:41]} 10. c3 {[%clk 0:02:19]}  Re8 {[%clk 0:02:27]} 11. Ne2 {[%clk 0:02:17]}  Nd7 {[%clk 0:02:12]} 12. Qd2 {[%clk 0:02:03]}  e5 {[%clk 0:02:11]} 13. Bg5 {[%clk 0:02:03]}  Qb6 {[%clk 0:02:08]} 14. a4 {[%clk 0:01:55]}  e4 {[%clk 0:01:56]} 15. Bc2 {[%clk 0:01:54]}  Nf6 {[%clk 0:01:41]} 16. Bf4 {[%clk 0:01:44]}  Bd7 {[%clk 0:01:31]} 17. Nd6 {[%clk 0:01:15]}  Re6 {[%clk 0:01:30]} 18. a5 {[%clk 0:01:16]}  Qd8 {[%clk 0:00:54]} 19. Nxb7 {[%clk 0:01:16]}  Qe7 {[%clk 0:00:54]} 20. Nc5 {[%clk 0:01:12]}  Nxc5 {[%clk 0:00:53]} 21. dxc5 {[%clk 0:01:13]}  Ng4 {[%clk 0:00:29]} 22. Be3 {[%clk 0:01:13]}  Rc8 {[%clk 0:00:15]} 23. b4 {[%clk 0:01:11]}  Bb5 {[%clk 0:00:14]} 24. Nd4 {[%clk 0:01:11]}  Bxd4 {[%clk 0:00:10]} 25. Qxd4 {[%clk 0:01:09]}  Re5 {[%clk 0:00:06]} 26. Bd1 {[%clk 0:00:57]}  Nxe3 {[%clk 0:00:06]} 27. Qxe3 {[%clk 0:00:55]}  d4 {[%clk 0:00:05]} 28. cxd4 {[%clk 0:00:54]}  Rd5 {[%clk 0:00:05]} 29. Bb3 {[%clk 0:00:55]}  Rd7 {[%clk 0:00:03]} 30. g4 {[%clk 0:00:52]}  Bd3 {[%clk 0:00:03]} 31. gxh5 {[%clk 0:00:46]}  Qf6 {[%clk 0:00:03]} 32. hxg6 {[%clk 0:00:46]}  Rxd4 {[%clk 0:00:04]} 33. gxf7+ {[%clk 0:00:28]}  Kf8 {[%clk 0:00:04]} 34. Qg5 {[%clk 0:00:29]}  Ke7 {[%clk 0:00:03]} 35. Qxf6+ {[%clk 0:00:20]}  Kxf6 {[%clk 0:00:04]} 36. Rg1 {[%clk 0:00:21]}  Rxb4 {[%clk 0:00:03]} 37. Rg8 {[%clk 0:00:21]}  Rbb8 {[%clk 0:00:01]} 38. Kd2 {[%clk 0:00:21]} 1-0


[Site "https://www.chess.com"]

[Event "Titled Tuesday Blitz February 28 Early 2023"]
[White "Postny, Evgeny"]
[Black "Stijve, Theo"]
[WhiteFideId "2804344"]
[BlackFideId "1331132"]
[WhiteElo "2509"]
[BlackElo "2256"]
[Result "1/2-1/2"]
[Round "06"]
[TimeControl "180+2"]
[Date "2023.02.28"]
[WhiteClock "0:00:05"]
[BlackClock "0:00:22"]

1. e4 {[%clk 0:03:00]}  c5 {[%clk 0:02:59]} 2. Nf3 {[%clk 0:03:00]}  e6 {[%clk 0:02:59]} 3. d4 {[%clk 0:03:00]}  cxd4 {[%clk 0:03:00]} 4. Nxd4 {[%clk 0:03:01]}  Nc6 {[%clk 0:03:01]} 5. Nb5 {[%clk 0:03:00]}  Nf6 {[%clk 0:03:00]} 6. N1c3 {[%clk 0:02:56]}  Bb4 {[%clk 0:02:57]} 7. a3 {[%clk 0:02:55]}  Bxc3+ {[%clk 0:02:54]} 8. Nxc3 {[%clk 0:02:56]}  d5 {[%clk 0:02:54]} 9. Bd3 {[%clk 0:02:54]}  dxe4 {[%clk 0:02:51]} 10. Nxe4 {[%clk 0:02:54]}  Nxe4 {[%clk 0:02:51]} 11. Bxe4 {[%clk 0:02:55]}  Qxd1+ {[%clk 0:02:51]} 12. Kxd1 {[%clk 0:02:56]}  Bd7 {[%clk 0:02:51]} 13. Be3 {[%clk 0:02:50]}  f5 {[%clk 0:02:49]} 14. Bd3 {[%clk 0:02:46]}  e5 {[%clk 0:02:48]} 15. f4 {[%clk 0:02:44]}  e4 {[%clk 0:02:44]} 16. Bc4 {[%clk 0:02:42]}  O-O-O {[%clk 0:02:41]} 17. Ke1 {[%clk 0:02:38]}  Rhe8 {[%clk 0:02:30]} 18. Rd1 {[%clk 0:02:34]}  Be6 {[%clk 0:02:29]} 19. Be2 {[%clk 0:02:25]}  b6 {[%clk 0:02:22]} 20. Kf2 {[%clk 0:02:21]}  Rxd1 {[%clk 0:02:16]} 21. Rxd1 {[%clk 0:02:16]}  Rd8 {[%clk 0:02:16]} 22. Rxd8+ {[%clk 0:02:09]}  Kxd8 {[%clk 0:02:16]} 23. h3 {[%clk 0:02:07]}  g6 {[%clk 0:02:00]} 24. g4 {[%clk 0:02:04]}  Kc7 {[%clk 0:01:59]} 25. Kg3 {[%clk 0:02:03]}  Na5 {[%clk 0:01:57]} 26. b3 {[%clk 0:02:02]}  Nc6 {[%clk 0:01:50]} 27. Kh4 {[%clk 0:01:57]}  h6 {[%clk 0:01:51]} 28. c4 {[%clk 0:01:29]}  Ne7 {[%clk 0:01:43]} 29. Bd4 {[%clk 0:01:26]}  Kd6 {[%clk 0:01:24]} 30. Bg7 {[%clk 0:01:13]}  Ng8 {[%clk 0:01:24]} 31. b4 {[%clk 0:01:01]}  Kc6 {[%clk 0:01:19]} 32. a4 {[%clk 0:00:59]}  a5 {[%clk 0:01:14]} 33. b5+ {[%clk 0:00:30]}  Kc5 {[%clk 0:01:05]} 34. Bf8+ {[%clk 0:00:31]}  Kd4 {[%clk 0:01:06]} 35. c5 {[%clk 0:00:31]}  bxc5 {[%clk 0:01:04]} 36. b6 {[%clk 0:00:31]}  Bc8 {[%clk 0:01:04]} 37. Bg7+ {[%clk 0:00:24]}  Ke3 {[%clk 0:00:59]} 38. Bc4 {[%clk 0:00:23]}  Kxf4 {[%clk 0:00:26]} 39. Bxg8 {[%clk 0:00:19]}  g5+ {[%clk 0:00:26]} 40. Kh5 {[%clk 0:00:20]}  fxg4 {[%clk 0:00:27]} 41. hxg4 {[%clk 0:00:18]}  Bxg4+ {[%clk 0:00:26]} 42. Kxh6 {[%clk 0:00:19]}  Bc8 {[%clk 0:00:26]} 43. Bc3 {[%clk 0:00:14]}  g4 {[%clk 0:00:23]} 44. Be6 {[%clk 0:00:09]}  Bb7 {[%clk 0:00:21]} 45. Bxa5 {[%clk 0:00:09]}  g3 {[%clk 0:00:20]} 46. Bh3 {[%clk 0:00:09]}  e3 {[%clk 0:00:20]} 47. Be1 {[%clk 0:00:06]}  g2 {[%clk 0:00:17]} 48. Bxg2 {[%clk 0:00:06]}  Bxg2 {[%clk 0:00:18]} 49. a5 {[%clk 0:00:06]}  Bb7 {[%clk 0:00:19]} 50. Kg6 {[%clk 0:00:06]}  Kf3 {[%clk 0:00:19]} 51. Kf5 {[%clk 0:00:05]}  Ke2 {[%clk 0:00:19]} 52. Bc3 {[%clk 0:00:04]}  Kd3 {[%clk 0:00:19]} 53. Be1 {[%clk 0:00:04]}  c4 {[%clk 0:00:20]} 54. Kf4 {[%clk 0:00:04]}  c3 {[%clk 0:00:21]} 55. Bxc3 {[%clk 0:00:04]}  Kxc3 {[%clk 0:00:20]} 56. Kxe3 {[%clk 0:00:04]}  Kb4 {[%clk 0:00:21]} 57. a6 {[%clk 0:00:05]}  Bxa6 {[%clk 0:00:21]} 58. b7 {[%clk 0:00:05]}  Bxb7 {[%clk 0:00:22]} 1/2-1/2


[Site "https://www.chess.com"]

[Event "Titled Tuesday Blitz February 28 Early 2023"]
[White "Maximov, Dmitry"]
[Black "Ilinca Ilinca, Felix Antonio"]
[WhiteFideId "14105659"]
[BlackFideId "54764998"]
[WhiteElo "2494"]
[BlackElo "2031"]
[Result "0-1"]
[Round "06"]
[TimeControl "180+2"]
[Date "2023.02.28"]
[WhiteClock "0:00:05"]
[BlackClock "0:00:19"]

1. e4 {[%clk 0:03:00]}  c5 {[%clk 0:02:59]} 2. Nf3 {[%clk 0:03:00]}  e6 {[%clk 0:02:59]} 3. c3 {[%clk 0:03:00]}  Nf6 {[%clk 0:02:59]} 4. Bd3 {[%clk 0:03:01]}  d5 {[%clk 0:02:41]} 5. e5 {[%clk 0:03:01]}  Nfd7 {[%clk 0:02:40]} 6. Bc2 {[%clk 0:03:01]}  c4 {[%clk 0:02:39]} 7. O-O {[%clk 0:02:58]}  Nc6 {[%clk 0:02:38]} 8. Re1 {[%clk 0:02:56]}  Qc7 {[%clk 0:02:31]} 9. Qe2 {[%clk 0:02:54]}  g5 {[%clk 0:02:24]} 10. Nxg5 {[%clk 0:02:30]}  Qxe5 {[%clk 0:02:22]} 11. d4 {[%clk 0:02:23]}  cxd3 {[%clk 0:02:18]} 12. Bxd3 {[%clk 0:02:12]}  Bd6 {[%clk 0:02:17]} 13. g3 {[%clk 0:02:00]}  h6 {[%clk 0:02:10]} 14. Nf3 {[%clk 0:01:57]}  Qxe2 {[%clk 0:02:05]} 15. Bxe2 {[%clk 0:01:56]}  Kf8 {[%clk 0:02:01]} 16. Nbd2 {[%clk 0:01:54]}  e5 {[%clk 0:01:56]} 17. Nb3 {[%clk 0:01:47]}  a5 {[%clk 0:01:53]} 18. a4 {[%clk 0:01:46]}  Nc5 {[%clk 0:01:52]} 19. Nxc5 {[%clk 0:01:43]}  Bxc5 {[%clk 0:01:53]} 20. Bd2 {[%clk 0:01:17]}  Be6 {[%clk 0:01:48]} 21. Rad1 {[%clk 0:01:11]}  f6 {[%clk 0:01:44]} 22. Bb5 {[%clk 0:01:07]}  Rc8 {[%clk 0:01:40]} 23. Nh4 {[%clk 0:01:07]}  Kg7 {[%clk 0:01:37]} 24. Be3 {[%clk 0:01:06]}  Bxe3 {[%clk 0:01:34]} 25. Rxe3 {[%clk 0:01:07]}  Rhd8 {[%clk 0:01:31]} 26. f4 {[%clk 0:00:54]}  e4 {[%clk 0:01:21]} 27. Kf2 {[%clk 0:00:46]}  f5 {[%clk 0:01:08]} 28. Ree1 {[%clk 0:00:43]}  Kf6 {[%clk 0:01:08]} 29. Ng2 {[%clk 0:00:42]}  Na7 {[%clk 0:01:00]} 30. Bf1 {[%clk 0:00:39]}  Nc6 {[%clk 0:00:56]} 31. Rd2 {[%clk 0:00:36]}  d4 {[%clk 0:00:48]} 32. cxd4 {[%clk 0:00:34]}  Rxd4 {[%clk 0:00:48]} 33. Red1 {[%clk 0:00:32]}  Rxa4 {[%clk 0:00:44]} 34. Ne3 {[%clk 0:00:29]}  Rb4 {[%clk 0:00:43]} 35. h3 {[%clk 0:00:29]}  h5 {[%clk 0:00:37]} 36. g4 {[%clk 0:00:26]}  hxg4 {[%clk 0:00:36]} 37. hxg4 {[%clk 0:00:26]}  fxg4 {[%clk 0:00:37]} 38. f5 {[%clk 0:00:27]}  Bxf5 {[%clk 0:00:27]} 39. Nd5+ {[%clk 0:00:27]}  Kg5 {[%clk 0:00:24]} 40. Nxb4 {[%clk 0:00:27]}  Nxb4 {[%clk 0:00:23]} 41. Kg3 {[%clk 0:00:24]}  e3 {[%clk 0:00:21]} 42. Re2 {[%clk 0:00:21]}  Re8 {[%clk 0:00:21]} 43. Bg2 {[%clk 0:00:20]}  Nd3 {[%clk 0:00:18]} 44. Bxb7 {[%clk 0:00:17]}  Nf4 {[%clk 0:00:18]} 45. Ree1 {[%clk 0:00:18]}  Nh5+ {[%clk 0:00:17]} 46. Kg2 {[%clk 0:00:18]}  Rb8 {[%clk 0:00:15]} 47. Ba6 {[%clk 0:00:15]}  Rxb2+ {[%clk 0:00:16]} 48. Be2 {[%clk 0:00:14]}  Nf4+ {[%clk 0:00:16]} 49. Kf1 {[%clk 0:00:14]}  g3 {[%clk 0:00:16]} 50. Ra1 {[%clk 0:00:03]}  Bh3+ {[%clk 0:00:16]} 51. Kg1 {[%clk 0:00:03]}  Nxe2+ {[%clk 0:00:16]} 52. Rxe2 {[%clk 0:00:04]}  Rxe2 {[%clk 0:00:16]} 53. Rxa5+ {[%clk 0:00:04]}  Kf6 {[%clk 0:00:16]} 54. Ra6+ {[%clk 0:00:04]}  Ke5 {[%clk 0:00:16]} 55. Ra5+ {[%clk 0:00:05]}  Kd6 {[%clk 0:00:17]} 56. Ra6+ {[%clk 0:00:05]}  Kc7 {[%clk 0:00:18]} 57. Ra7+ {[%clk 0:00:05]}  Kb6 {[%clk 0:00:18]} 58. Ra1 {[%clk 0:00:06]}  Rf2 {[%clk 0:00:18]} 59. Rb1+ {[%clk 0:00:06]}  Ka5 {[%clk 0:00:19]} 60. Ra1+ {[%clk 0:00:06]}  Kb4 {[%clk 0:00:19]} 61. Rb1+ {[%clk 0:00:06]}  Ka3 {[%clk 0:00:20]} 62. Re1 {[%clk 0:00:06]}  e2 {[%clk 0:00:19]} 63. Ra1+ {[%clk 0:00:05]}  Kb2 {[%clk 0:00:19]} 0-1


[Site "https://www.chess.com"]

[Event "Titled Tuesday Blitz February 28 Early 2023"]
[White "Ordekalog"]
[Black "Hasangatin, Ramil"]
[BlackFideId "4122160"]
[WhiteElo "2579"]
[BlackElo "2310"]
[Result "0-1"]
[Round "06"]
[TimeControl "180+2"]
[Date "2023.02.28"]
[WhiteClock "0:00:01"]
[BlackClock "0:00:37"]

1. e4 {[%clk 0:03:00]}  d5 {[%clk 0:02:59]} 2. exd5 {[%clk 0:02:59]}  Qxd5 {[%clk 0:03:00]} 3. Nc3 {[%clk 0:02:59]}  Qd6 {[%clk 0:03:00]} 4. Nf3 {[%clk 0:02:58]}  Nf6 {[%clk 0:03:01]} 5. d4 {[%clk 0:02:58]}  c6 {[%clk 0:03:01]} 6. Ne5 {[%clk 0:02:56]}  Nbd7 {[%clk 0:03:01]} 7. Nc4 {[%clk 0:02:44]}  Qc7 {[%clk 0:03:01]} 8. Qf3 {[%clk 0:02:44]}  Nb6 {[%clk 0:03:01]} 9. Bf4 {[%clk 0:02:44]}  Qd8 {[%clk 0:03:01]} 10. Ne5 {[%clk 0:02:37]}  Be6 {[%clk 0:02:59]} 11. O-O-O {[%clk 0:02:30]}  Nbd5 {[%clk 0:02:58]} 12. Bc4 {[%clk 0:02:22]}  g6 {[%clk 0:02:53]} 13. Bg5 {[%clk 0:02:12]}  Bg7 {[%clk 0:02:53]} 14. Bxf6 {[%clk 0:01:56]}  Bxf6 {[%clk 0:02:49]} 15. Nxd5 {[%clk 0:01:53]}  Bxd5 {[%clk 0:02:49]} 16. Bxd5 {[%clk 0:01:49]}  Qxd5 {[%clk 0:02:50]} 17. Qxd5 {[%clk 0:01:48]}  cxd5 {[%clk 0:02:50]} 18. Rhe1 {[%clk 0:01:48]}  e6 {[%clk 0:02:47]} 19. Kb1 {[%clk 0:01:46]}  b5 {[%clk 0:02:42]} 20. a4 {[%clk 0:01:36]}  bxa4 {[%clk 0:02:40]} 21. Rd3 {[%clk 0:01:36]}  Be7 {[%clk 0:02:39]} 22. Ka2 {[%clk 0:01:29]}  Bb4 {[%clk 0:02:31]} 23. c3 {[%clk 0:01:23]}  Bd6 {[%clk 0:02:31]} 24. Rf3 {[%clk 0:01:12]}  O-O {[%clk 0:02:29]} 25. g4 {[%clk 0:01:06]}  Kg7 {[%clk 0:02:28]} 26. g5 {[%clk 0:01:05]}  Rac8 {[%clk 0:02:15]} 27. h4 {[%clk 0:01:04]}  Rc7 {[%clk 0:02:15]} 28. Ng4 {[%clk 0:01:03]}  Rb8 {[%clk 0:02:12]} 29. h5 {[%clk 0:00:51]}  Rcb7 {[%clk 0:02:11]} 30. h6+ {[%clk 0:00:48]}  Kg8 {[%clk 0:01:58]} 31. Re2 {[%clk 0:00:49]}  Be7 {[%clk 0:01:56]} 32. Nf6+ {[%clk 0:00:46]}  Bxf6 {[%clk 0:01:56]} 33. Rxf6 {[%clk 0:00:46]}  Rb3 {[%clk 0:01:51]} 34. Rf3 {[%clk 0:00:45]}  R8b6 {[%clk 0:01:47]} 35. Rd3 {[%clk 0:00:41]}  Kf8 {[%clk 0:01:46]} 36. Rd1 {[%clk 0:00:37]}  a3 {[%clk 0:01:44]} 37. bxa3 {[%clk 0:00:30]}  Rxc3 {[%clk 0:01:44]} 38. Rb1 {[%clk 0:00:19]}  Rxb1 {[%clk 0:01:36]} 39. Kxb1 {[%clk 0:00:19]}  f6 {[%clk 0:00:58]} 40. Rxe6 {[%clk 0:00:16]}  fxg5 {[%clk 0:00:57]} 41. Re5 {[%clk 0:00:15]}  Rxa3 {[%clk 0:00:51]} 42. Rxd5 {[%clk 0:00:13]}  Rh3 {[%clk 0:00:47]} 43. Rd7 {[%clk 0:00:04]}  Rxh6 {[%clk 0:00:46]} 44. Kc2 {[%clk 0:00:04]}  Rh3 {[%clk 0:00:45]} 45. d5 {[%clk 0:00:03]}  h5 {[%clk 0:00:45]} 46. Rxa7 {[%clk 0:00:03]}  Rf3 {[%clk 0:00:44]} 47. d6 {[%clk 0:00:03]}  Rxf2+ {[%clk 0:00:43]} 48. Kc3 {[%clk 0:00:03]}  Ke8 {[%clk 0:00:44]} 49. Re7+ {[%clk 0:00:03]}  Kd8 {[%clk 0:00:44]} 50. Kc4 {[%clk 0:00:02]}  Rf5 {[%clk 0:00:43]} 51. Rg7 {[%clk 0:00:01]}  h4 {[%clk 0:00:43]} 52. Rxg6 {[%clk 0:00:01]}  Kd7 {[%clk 0:00:43]} 53. Kd4 {[%clk 0:00:01]}  h3 {[%clk 0:00:37]} 0-1


[Site "https://www.chess.com"]

[Event "Titled Tuesday Blitz February 28 Early 2023"]
[White "Turzo, Attila"]
[Black "Barrientos, Sergio E"]
[WhiteFideId "704954"]
[BlackFideId "4401824"]
[WhiteElo "2542"]
[BlackElo "2408"]
[Result "0-1"]
[Round "06"]
[TimeControl "180+2"]
[Date "2023.02.28"]
[WhiteClock "0:00:01"]
[BlackClock "0:00:25"]

1. e4 {[%clk 0:03:00]}  c6 {[%clk 0:02:56]} 2. d4 {[%clk 0:03:00]}  d5 {[%clk 0:02:54]} 3. exd5 {[%clk 0:03:01]}  cxd5 {[%clk 0:02:52]} 4. Bd3 {[%clk 0:03:01]}  Nc6 {[%clk 0:02:51]} 5. c3 {[%clk 0:03:02]}  Qc7 {[%clk 0:02:51]} 6. Nf3 {[%clk 0:02:54]}  Bg4 {[%clk 0:02:50]} 7. O-O {[%clk 0:02:54]}  e6 {[%clk 0:02:50]} 8. Re1 {[%clk 0:02:47]}  Bd6 {[%clk 0:02:50]} 9. h3 {[%clk 0:02:42]}  Bh5 {[%clk 0:02:50]} 10. Be3 {[%clk 0:02:27]}  Nge7 {[%clk 0:02:48]} 11. Nbd2 {[%clk 0:02:27]}  Bg6 {[%clk 0:02:39]} 12. Qe2 {[%clk 0:02:18]}  O-O {[%clk 0:02:30]} 13. a3 {[%clk 0:02:13]}  Rae8 {[%clk 0:02:29]} 14. c4 {[%clk 0:02:12]}  Qd7 {[%clk 0:02:23]} 15. c5 {[%clk 0:02:06]}  Bc7 {[%clk 0:02:23]} 16. b4 {[%clk 0:02:06]}  a6 {[%clk 0:02:17]} 17. Rab1 {[%clk 0:01:50]}  Nf5 {[%clk 0:02:13]} 18. a4 {[%clk 0:01:48]}  e5 {[%clk 0:02:02]} 19. dxe5 {[%clk 0:01:38]}  Nxe5 {[%clk 0:01:56]} 20. Nxe5 {[%clk 0:01:27]}  Bxe5 {[%clk 0:01:51]} 21. Qf1 {[%clk 0:00:48]}  d4 {[%clk 0:01:31]} 22. Bg5 {[%clk 0:00:47]}  h6 {[%clk 0:01:29]} 23. Nf3 {[%clk 0:00:44]}  Bc7 {[%clk 0:01:20]} 24. Bd2 {[%clk 0:00:41]}  Ne3 {[%clk 0:01:02]} 25. Bxe3 {[%clk 0:00:30]}  dxe3 {[%clk 0:01:02]} 26. Bxg6 {[%clk 0:00:28]}  exf2+ {[%clk 0:01:02]} 27. Qxf2 {[%clk 0:00:28]}  fxg6 {[%clk 0:01:02]} 28. b5 {[%clk 0:00:21]}  Rxe1+ {[%clk 0:01:00]} 29. Qxe1 {[%clk 0:00:21]}  axb5 {[%clk 0:01:00]} 30. axb5 {[%clk 0:00:20]}  Qd5 {[%clk 0:00:52]} 31. Qc3 {[%clk 0:00:18]}  Kh7 {[%clk 0:00:49]} 32. Rf1 {[%clk 0:00:15]}  Rf5 {[%clk 0:00:48]} 33. Rc1 {[%clk 0:00:12]}  Bf4 {[%clk 0:00:39]} 34. Rf1 {[%clk 0:00:04]}  Qxc5+ {[%clk 0:00:37]} 35. Qxc5 {[%clk 0:00:05]}  Rxc5 {[%clk 0:00:38]} 36. Rb1 {[%clk 0:00:05]}  Be3+ {[%clk 0:00:35]} 37. Kh2 {[%clk 0:00:05]}  Rc2 {[%clk 0:00:35]} 38. Kg3 {[%clk 0:00:06]}  h5 {[%clk 0:00:34]} 39. h4 {[%clk 0:00:06]}  Kh6 {[%clk 0:00:33]} 40. Rb3 {[%clk 0:00:05]}  Bf2+ {[%clk 0:00:33]} 41. Kf4 {[%clk 0:00:05]}  Rc5 {[%clk 0:00:30]} 42. Ke4 {[%clk 0:00:02]}  b6 {[%clk 0:00:27]} 43. Rb2 {[%clk 0:00:01]}  Bg3 {[%clk 0:00:26]} 44. Rb3 {[%clk 0:00:01]}  Rf5 {[%clk 0:00:25]} 0-1


[Site "https://www.chess.com"]